[Event "Romanian Open 2021"]
[Site "Alba Iulia"]
[Date "2021.11.22"]
[Round "3.11"]
[White "Tudor, Henry Edward"]
[Black "Arion, Ilie"]
[Result "1-0"]
[ECO "A58"]
[WhiteElo "1753"]
[BlackElo "1758"]
[Annotator "NA RC"]
[PlyCount "59"]
[EventDate "2021.11.21"]
[EventType "swiss"]
[EventCountry "ROU"]
[SourceTitle "playchess.com"]
[Source "ChessBase"]
[SourceQuality "1"]
[TimeControl "5400+30"]

1. d4 {[%emt 0:00:04]} Nf6 {[%emt 1:31:00]} 2. c4 {[%emt 0:00:05]} c5 {[%emt 0:00:00]} 3. d5 {[%emt 0:00:13]} b5 {[%emt 0:00:00]} 4. cxb5 {[%emt 0:00:10]} a6 {[%emt 0:00:00]} 5. bxa6 {[%emt 0:00:05]} g6 {[%emt 0:00:00]} 6. Nc3 {[%emt 0:00:12]} Bg7 {[%emt 0:00:00]} 7. e4 {[%emt 0:00:29]} O-O {[%emt 0:00:00]} 8. Nf3 {[%emt 0:07:13]} Qa5 {[%emt 0:00:00]} 9. Nd2 {[%emt 0:01:37]} Bxa6 {[%emt 0:00:00]} 10. Be2 {[%emt 0:02:45]} d6 {[%emt 0:00:00]} 11. O-O {[%emt 0:00:24]} Bxe2 {[%emt 0:00:00]} 12. Qxe2 {[%emt 0:00:08]} Qa6 {[%emt 0:00:00]} 13. Nb5 {[%emt 0:01:22]} Nbd7 {[%emt 0:00:00]} 14. a4 {[%emt 0:00:54]} Rfb8 {[%emt 0:00:00]} 15. Ra3 {[%emt 0:00:18]} Nb6 {[%emt 0:00:00]} 16. b3 {[%emt 0:00:18]} Nfd7 {[%emt 0:00:00]} 17. f4 {[%emt 0:18:53]} Rc8 {[%emt 0:00:00]} 18. Ra2 {[%emt 0:01:37]} c4 {[%emt 0:00:00]} 19. Nxc4 {[%emt 0:11:31]} Nxc4 {[%emt 0:00:00]} 20. bxc4 {[%emt 0:00:08]} Nb6 {[%emt 0:00:00]} 21. Be3 {[%emt 0:00:43]} Rxc4 {[%emt 0:00:00]} 22. a5 {[%emt 0:02:16]} Qxb5 {[%emt 0:00:00]} 23. axb6 {[%emt 0:05:41]} Rxa2 24. Qxa2 {[%emt 0:00:01]} Bd4 {[%emt 0:00:00]} 25. Bxd4 {[%emt 0:06:59]} Rxd4 {[%emt 0:00:00]} 26. Qa8+ {[%emt 0:00:01]} Kg7 {[%emt 0:00:00]} 27. Qa1 {[%emt 0:00:01]} Qa4 {[%emt 0:00:00]} 28. Qb2 {[%emt 0:01:59]} Qb4 {[%emt 0:00:00]} 29. Rb1 {[%emt 0:00:06]} Qc5 {[%emt 0:00:00]} 30. Rd1 {[%emt 0:00:15]} 1-0